lending/lending_fUSD_20260124
["ID","MTS","AMOUNT","RATE_DAILY","PERIOD"]
[403191423,1769261441675,-187.78006525,0.00014768,2]
[403191424,1769261441683,-150.27952116,0.00014842,2]
[403191425,1769261441692,-8414.31,0.00014944,2]
[403191426,1769261441943,-1600.0,0.00014979,2]
[403191427,1769261441954,-151.0,0.00014997,2]
[403191428,1769261441963,-6210.2490806,0.00015,2]
[403191429,1769261441972,-10564.84740664,0.00015,2]
[403191430,1769261441983,-334.5472959,0.00015041,2]
[403191431,1769261441993,-2065.26,0.00015068,2]
[403191432,1769261442004,-157.07,0.00015068,2]
[403191433,1769261442015,-157.07,0.00015068,2]
[403191434,1769261442025,-157.07,0.00015068,2]
[403191435,1769261442034,-157.07,0.00015068,2]
[403191436,1769261442045,-157.07,0.00015068,2]
[403191437,1769261442054,-157.07,0.00015068,2]
[403191438,1769261442063,-157.07,0.00015068,2]
[403191439,1769261442076,-157.07,0.00015068,2]
[403191440,1769261442086,-157.07,0.00015068,2]
[403191441,1769261442095,-157.09,0.00015068,2]
[403191442,1769261442105,-150.0,0.00015123,2]
[403191443,1769261442115,-151055.5315689,0.00015126,2]
[403191444,1769261442125,-222.33,0.00015147,2]
[403191445,1769261442134,-329.06560895,0.00015172,2]
[403191446,1769261442145,-151.0,0.00015172,2]
[403191447,1769261442155,-2423.1177595,0.000152,2]
[403191448,1769261442165,-152.0,0.00015202,3]
[403191449,1769261442174,-15553.74068616,0.00015226,2]
[403191450,1769261442183,-1722.37,0.00015263,2]
[403191451,1769261442192,-194.72792766,0.00015316,2]
[403191452,1769261442201,-508.06724516,0.000154,2]
[403191453,1769261442211,-1000.0,0.00015467,2]
[403191454,1769261442219,-2941.14,0.00015525,2]
[403191455,1769261442229,-2972.57,0.00015591,2]
[403191456,1769261442237,-166.66,0.00015623,2]
[403191457,1769261442246,-250.0,0.00015702,2]
[403191458,1769261442255,-2065.26,0.00015753,2]
[403191459,1769261442265,-198.9795,0.00015773,2]
[403191460,1769261442274,-193.38072693,0.00015807,2]
[403191461,1769261442283,-3292.0,0.00015816,2]
[403191462,1769261442292,-329.06560895,0.00015854,2]
[403191463,1769261442301,-201.93286099,0.00015864,2]
[403191464,1769261442311,-500.0,0.00015873,2]
[403191465,1769261442320,-500.0,0.00015873,2]
[403191466,1769261442329,-500.0,0.00015873,2]
[403191467,1769261442338,-502.29589006,0.00015873,2]
[403191468,1769261442347,-500.0,0.00015873,2]
[403191469,1769261442356,-500.0,0.00015873,2]
[403191470,1769261442365,-500.0,0.00015873,2]
[403191471,1769261442374,-500.0,0.00015873,2]
[403191472,1769261442383,-613.07928255,0.00015873,2]
[403191473,1769261442392,-500.0,0.00015873,2]
[403191474,1769261442401,-500.0,0.00015873,2]
[403191475,1769261442410,-507.95507628,0.00015873,2]
[403191476,1769261442419,-500.0,0.00015873,2]
[403191477,1769261442428,-500.0,0.00015873,2]
[403191478,1769261442436,-344.27510642,0.00015873,2]
[403191479,1769261442446,-500.0,0.00015873,2]
[403191480,1769261442455,-501.64063566,0.00015873,2]
[403191481,1769261442464,-500.0,0.00015873,2]
[403191482,1769261442472,-500.0,0.00015873,2]
[403191483,1769261442481,-15553.74068616,0.00015895,2]
[403191484,1769261442490,-166.66,0.00015952,2]
[403191485,1769261442498,-1500.0,0.00015972,2]
[403191486,1769261442507,-500.0,0.00015972,2]
[403191487,1769261442516,-200.0,0.00015984,2]
[403191488,1769261442525,-150.0,0.00016,2]
[403191489,1769261442534,-560.21,0.00016064,2]
[403191490,1769261442543,-152.0,0.0001609,4]
[403191491,1769261442551,-159.59843399,0.00016132,2]
[403191492,1769261442560,-143885.47625475,0.000162,5]
[403191493,1769261442569,-166.66,0.00016281,2]
[403191494,1769261442577,-360.04,0.00016327,2]
[403191495,1769261442586,-560.21,0.00016338,2]
[403191496,1769261442594,-500.0,0.00016356,2]
[403191497,1769261442603,-500.0,0.00016356,2]
[403191498,1769261442612,-857.0,0.000164,2]
[403191499,1769261442621,-346.92554585,0.0001641,2]
[403191500,1769261442630,-599.60298507,0.00016411,2]
[403191501,1769261442638,-209.40437684,0.00016412,2]
[403191502,1769261442647,-1000.0,0.00016421,2]
[403191503,1769261442655,-1000.0,0.00016421,2]
[403191504,1769261442664,-502.45143879,0.00016421,2]
[403191505,1769261442673,-1000.0,0.00016421,2]
[403191506,1769261442683,-1000.0,0.00016421,2]
[403191507,1769261442693,-1000.0,0.00016421,2]
[403191508,1769261442703,-1000.0,0.00016421,2]
[403191509,1769261442713,-1000.0,0.00016421,2]
[403191510,1769261442722,-1000.0,0.00016421,2]
[403191511,1769261442730,-1019.79945563,0.00016421,2]
[403191512,1769261442739,-1000.0,0.00016421,2]
[403191513,1769261442748,-1000.0,0.00016421,2]
[403191514,1769261442756,-1000.0,0.00016421,2]
[403191515,1769261442766,-157.07,0.00016438,2]
[403191516,1769261442775,-157.07,0.00016438,2]
[403191517,1769261442786,-157.07,0.00016438,2]
[403191518,1769261442794,-3012.0,0.00016438,2]
[403191519,1769261442805,-2065.26,0.00016438,2]
[403191520,1769261442815,-151.0,0.00016438,2]
[403191521,1769261442824,-329.06560895,0.00016536,2]
[403191522,1769261442833,-690.22277215,0.00016555,2]
[403191523,1769261442843,-736.48903839,0.00016555,2]
[403191525,1769261442853,-15553.74068616,0.00016563,2]
[403191527,1769261442862,-240.00873386,0.00016587,2]
[403191529,1769261442871,-1000.0,0.00016596,2]
[403191530,1769261442880,-16197.82,0.00016603,2]
[403191531,1769261442889,-166.66,0.0001661,2]
[403191532,1769261442898,-560.21,0.00016612,2]
[403191533,1769261442907,-1600.0,0.00016644,2]
[403191536,1769261442916,-151055.5315689,0.00016698,2]
[403191538,1769261442924,-1837.9390393,0.00016736,2]
[403191539,1769261442933,-200.0,0.00016792,2]
[403191540,1769261442942,-2423.1177595,0.00016808,2]
[403191541,1769261442951,-500.0,0.00016866,2]
[403191542,1769261442960,-500.0,0.00016866,2]
[403191543,1769261442969,-560.21,0.00016886,2]
[403191544,1769261442978,-3552.7,0.00016925,2]
[403191545,1769261442988,-166.66,0.00016939,2]
[403191546,1769261442997,-307.30204498,0.0001696,2]
[403191547,1769261443010,-1073.98879249,0.00016968,2]
[403191548,1769261443019,-1500.0,0.00016968,2]
[403191549,1769261443029,-1500.0,0.00016968,2]
[403191550,1769261443038,-1500.0,0.00016968,2]
[403191551,1769261443049,-1500.0,0.00016968,2]
[403191552,1769261443058,-1500.0,0.00016968,2]
[403191553,1769261443067,-348.0638206,0.00016968,2]
[403191554,1769261443078,-1500.0,0.00016968,2]
[403191555,1769261443089,-1500.0,0.00016968,2]
[403191556,1769261443099,-1500.0,0.00016968,2]
[403191557,1769261443108,-1500.0,0.00016968,2]
[403191558,1769261443117,-534.0,0.00016971,2]
[403191559,1769261443126,-152.0,0.00016979,5]
[403191560,1769261443135,-127931.54456478,0.00017,2]
[403191561,1769261443144,-3207.48934641,0.00017,2]
[403191562,1769261443154,-3552.7,0.00017023,2]
[403191563,1769261443164,-159.59843399,0.00017028,2]
[403191564,1769261443173,-1000.0,0.000171,2]
[403191565,1769261443182,-3552.7,0.0001712,2]
[403191566,1769261443191,-534.0,0.00017122,2]
[403191567,1769261443199,-200.0,0.00017128,2]
[403191568,1769261443209,-360.04,0.0001713,2]
[403191569,1769261443219,-560.21,0.0001716,2]
[403191570,1769261443228,-534.0,0.00017161,2]
[403191571,1769261443237,-534.0,0.00017172,2]
[403191572,1769261443247,-5888.95973662,0.000172,5]
[403191573,1769261443256,-3552.7,0.00017218,2]
[403191574,1769261443265,-329.06560895,0.00017218,2]
[403191575,1769261443273,-15553.74068616,0.00017232,2]
[403191576,1769261443282,-800.0,0.0001726,2]
[403191577,1769261443291,-800.0,0.0001726,2]
[403191578,1769261443300,-800.0,0.0001726,2]
[403191579,1769261443308,-800.0,0.0001726,2]
[403191580,1769261443318,-800.0,0.0001726,2]
[403191581,1769261443327,-800.0,0.0001726,2]
[403191582,1769261443336,-800.0,0.0001726,2]
[403191583,1769261443344,-800.0,0.0001726,2]
[403191585,1769261443353,-800.0,0.0001726,2]
[403191586,1769261443362,-800.0,0.0001726,2]
[403191587,1769261443371,-800.0,0.0001726,2]
[403191588,1769261443381,-800.0,0.0001726,2]
[403191589,1769261443390,-800.0,0.0001726,2]
[403191590,1769261443399,-800.0,0.0001726,2]
[403191592,1769261443409,-800.0,0.0001726,2]
[403191593,1769261443418,-800.0,0.0001726,2]
[403191594,1769261443428,-800.0,0.0001726,2]
[403191595,1769261443437,-800.0,0.0001726,2]
[403191596,1769261443448,-800.0,0.0001726,2]
[403191597,1769261443457,-800.0,0.0001726,2]
[403191598,1769261443466,-800.0,0.0001726,2]
[403191599,1769261443476,-800.0,0.0001726,2]
[403191600,1769261443485,-800.0,0.0001726,2]
[403191601,1769261443494,-800.0,0.0001726,2]
[403191602,1769261443505,-800.0,0.0001726,2]
[403191604,1769261443514,-800.0,0.0001726,2]
[403191605,1769261443523,-800.0,0.0001726,2]
[403191607,1769261443532,-800.0,0.0001726,2]
[403191608,1769261443541,-800.0,0.0001726,2]
[403191609,1769261443551,-800.0,0.0001726,2]
[403191610,1769261443560,-800.0,0.0001726,2]
[403191611,1769261443569,-800.0,0.0001726,2]
[403191612,1769261443578,-800.0,0.0001726,2]
[403191613,1769261443587,-800.0,0.0001726,2]
[403191614,1769261443596,-800.0,0.0001726,2]
[403191616,1769261443604,-800.0,0.0001726,2]
[403191618,1769261443613,-800.0,0.0001726,2]
[403191619,1769261443623,-800.0,0.0001726,2]
[403191620,1769261443631,-800.0,0.0001726,2]
[403191621,1769261443640,-800.0,0.0001726,2]
[403191622,1769261443650,-800.0,0.0001726,2]
[403191623,1769261443659,-800.0,0.0001726,2]
[403191624,1769261443669,-800.0,0.0001726,2]
[403191625,1769261443678,-800.0,0.0001726,2]
[403191626,1769261443687,-800.0,0.0001726,2]
[403191627,1769261443698,-418.0,0.0001726,2]
[403191628,1769261443706,-500.0,0.0001726,2]
[403191629,1769261443715,-617.0,0.0001726,2]
[403191630,1769261443725,-200.0,0.0001726,2]
[403191631,1769261443735,-200.0,0.0001726,2]
[403191632,1769261443745,-200.0,0.0001726,2]
[403191633,1769261443754,-200.0,0.0001726,2]
[403191634,1769261443764,-200.0,0.0001726,2]
[403191635,1769261443775,-200.0,0.0001726,2]
[403191636,1769261443786,-200.0,0.0001726,2]
[403191637,1769261443796,-200.0,0.0001726,2]
[403191638,1769261443808,-200.0,0.0001726,2]
[403191639,1769261443817,-200.0,0.0001726,2]
[403191640,1769261443826,-200.0,0.0001726,2]
[403191641,1769261443837,-200.0,0.0001726,2]
[403191642,1769261443846,-200.0,0.0001726,2]
[403191643,1769261443855,-200.0,0.0001726,2]
[403191644,1769261443865,-200.0,0.0001726,2]
[403191645,1769261443875,-200.0,0.0001726,2]
[403191646,1769261443884,-200.0,0.0001726,2]
[403191647,1769261443894,-200.0,0.0001726,2]
[403191648,1769261443904,-200.0,0.0001726,2]
[403191649,1769261443913,-200.0,0.0001726,2]
[403191650,1769261443923,-200.0,0.0001726,2]
[403191651,1769261443932,-200.0,0.0001726,2]
[403191652,1769261443941,-200.0,0.0001726,2]
[403191653,1769261443950,-200.0,0.0001726,2]
[403191654,1769261443960,-200.0,0.0001726,2]
[403191655,1769261443969,-200.0,0.0001726,2]
[403191656,1769261443978,-200.0,0.0001726,2]
[403191657,1769261443986,-200.0,0.0001726,2]
[403191658,1769261443995,-200.0,0.0001726,2]
[403191659,1769261444007,-200.0,0.0001726,2]
[403191660,1769261444016,-200.0,0.0001726,2]
[403191661,1769261444025,-200.0,0.0001726,2]
[403191662,1769261444034,-1000.0,0.0001726,2]
[403191663,1769261444044,-166.66,0.00017268,2]
[403191664,1769261444054,-286.88,0.00017284,2]
[403191665,1769261444064,-534.0,0.00017292,2]
[403191666,1769261444073,-3552.7,0.00017316,2]
[403191667,1769261444082,-200.0,0.00017329,2]
[403191668,1769261444094,-162.038,0.00017388,2]
[403191669,1769261444102,-1408.0,0.00017388,2]
[403191670,1769261444112,-615.979,0.00017388,2]
[403191671,1769261444121,-4609.0,0.00017397,2]
[403191672,1769261444130,-200.0,0.00017411,2]
[403191673,1769261444140,-3552.7,0.00017414,2]
[403191674,1769261444151,-1683.0,0.00017424,2]
[403191675,1769261444160,-560.21,0.00017434,2]
[403191676,1769261444170,-1683.0,0.00017462,2]
[403191677,1769261444179,-400.000001,0.000175,3]
[403191678,1769261444189,-9577.0107416,0.000175,2]
[403191679,1769261444199,-1189.38769854,0.000175,3]
[403191680,1769261444209,-4301.43742151,0.000175,2]
[403191681,1769261444220,-400.37170123,0.000175,2]
[403191682,1769261444231,-3552.7,0.00017511,2]
[403191683,1769261444240,-2000.0,0.00017516,2]
[403191684,1769261444250,-2000.0,0.00017516,2]
[403191685,1769261444259,-2000.0,0.00017516,2]
[403191686,1769261444267,-2000.0,0.00017516,2]
[403191687,1769261444276,-2000.0,0.00017516,2]
[403191688,1769261444286,-2000.0,0.00017516,2]
[403191689,1769261444295,-2000.0,0.00017516,2]
[403191690,1769261444307,-2000.0,0.00017516,2]
[403191691,1769261444318,-2000.0,0.00017516,2]
[403191692,1769261444328,-1683.0,0.00017525,2]
[403191693,1769261444338,-1000.0,0.00017534,2]
[403191694,1769261444347,-200.0,0.00017539,2]
[403191695,1769261444356,-997.17336156,0.00017555,2]
[403191696,1769261444366,-200.0,0.000176,2]
[403191697,1769261444376,-3552.7,0.00017609,2]
[403191698,1769261444385,-179.67,0.00017609,2]
[403191699,1769261444394,-500.0,0.00017616,2]
[403191700,1769261444404,-5404.10438685,0.0001764,2]
[403191701,1769261444415,-150.0,0.00017644,2]
[403191702,1769261444425,-150.0,0.00017644,2]
[403191703,1769261444434,-150.0,0.00017644,2]
[403191704,1769261444444,-150.0,0.00017644,2]
[403191705,1769261444453,-500.0,0.00017644,2]
[403191706,1769261444463,-500.0,0.00017644,2]
[403191707,1769261444471,-150.0,0.00017644,2]
[403191708,1769261444480,-500.0,0.00017644,2]
[403191709,1769261444489,-150.0,0.00017644,2]
[403191710,1769261444498,-150.0,0.00017644,2]
[403191711,1769261444507,-778.0,0.00017644,2]
[403191712,1769261444516,-150.0,0.00017644,2]
[403191713,1769261444526,-150.0,0.00017644,2]
[403191714,1769261444536,-150.0,0.00017644,2]
[403191715,1769261444546,-150.0,0.00017644,2]
[403191716,1769261444555,-150.0,0.00017644,2]
[403191717,1769261444565,-252.63713623,0.00017644,2]
[403191718,1769261444574,-150.0,0.00017644,2]
[403191719,1769261444583,-1683.0,0.00017654,2]
[403191720,1769261444592,-500.0,0.00017671,2]
[403191721,1769261444601,-172.8753019,0.00017677,2]
[403191722,1769261444610,-200.0,0.00017687,2]
[403191723,1769261444618,-150.0,0.00017699,2]
[403191724,1769261444627,-150.0,0.00017699,2]
[403191725,1769261444636,-500.0,0.00017699,2]
[403191726,1769261444645,-500.0,0.00017699,2]
[403191727,1769261444654,-778.0,0.00017699,2]
[403191728,1769261444664,-500.0,0.00017699,2]
[403191729,1769261444674,-1000.0,0.000177,2]
[403191730,1769261444683,-3552.7,0.00017707,2]
[403191731,1769261444694,-560.21,0.00017708,2]
[403191732,1769261444704,-1000.0,0.00017723,2]
[403191733,1769261444714,-1000.0,0.00017726,2]
[403191734,1769261444724,-929.63069455,0.0001773,2]
[403191735,1769261444734,-1000.0,0.00017752,2]
[403191736,1769261444745,-200.0,0.00017754,2]
[403191737,1769261444756,-150.0,0.00017754,2]
[403191738,1769261444766,-300.0,0.00017754,2]
[403191739,1769261444775,-150.0,0.00017754,2]
[403191740,1769261444783,-778.0,0.00017754,2]
[403191741,1769261444792,-500.0,0.00017754,2]
[403191742,1769261444802,-150.0,0.00017755,2]
[403191743,1769261444811,-1000.0,0.00017762,2]
[403191744,1769261444820,-867.75,0.00017764,2]
[403191745,1769261444829,-1000.0,0.00017768,2]
[403191746,1769261444839,-150.0,0.00017772,2]
[403191747,1769261444848,-200.0,0.00017776,2]
[403191748,1769261444858,-1000.0,0.00017777,2]
[403191749,1769261444866,-359.76179104,0.00017779,2]
[403191750,1769261444875,-1000.0,0.00017782,2]
[403191751,1769261444885,-569.59844908,0.00017785,2]
[403191752,1769261444894,-152.734551,0.00017802,2]
[403191753,1769261444903,-3552.7,0.00017805,2]
[403191754,1769261444913,-500.0,0.00017808,2]
[403191755,1769261444922,-1000.0,0.00017808,2]
[403191756,1769261444931,-203.21260792,0.00017808,2]
[403191757,1769261444940,-778.0,0.00017808,2]
[403191758,1769261444949,-500.0,0.00017808,2]
[403191759,1769261444959,-1000.0,0.00017812,2]
[403191760,1769261444967,-231.38369303,0.0001782,2]
[403191761,1769261444977,-345.80207569,0.00017822,2]
[403191762,1769261444987,-610.03585076,0.00017822,2]
[403191763,1769261444996,-912.57714888,0.00017822,2]
[403191764,1769261445010,-1234.7478,0.00017822,2]
[403191765,1769261445020,-25000.0,0.00017847,3]
[403191766,1769261445029,-150.0,0.00017849,2]
[403191767,1769261445039,-1000.0,0.0001785,2]
[403191768,1769261445050,-200.0,0.00017856,2]
[403191769,1769261445059,-25000.0,0.00017856,3]
[403191770,1769261445068,-500.0,0.00017863,2]
[403191771,1769261445079,-778.0,0.00017863,2]
[403191772,1769261445088,-334.98771886,0.00017863,2]
[403191773,1769261445096,-25000.0,0.00017865,3]
[403191774,1769261445105,-1000.0,0.00017866,2]
[403191775,1769261445114,-152.0,0.00017867,6]
[403191776,1769261445123,-25000.0,0.00017874,3]
[403191777,1769261445131,-150.0,0.00017875,2]
[403191778,1769261445140,-25000.0,0.00017882,3]
[403191779,1769261445149,-150.0,0.00017888,2]
[403191780,1769261445159,-254.0,0.00017889,2]
[403191781,1769261445168,-25000.0,0.00017891,3]
[403191782,1769261445177,-800.0,0.00017894,2]
[403191783,1769261445187,-150.0,0.00017898,2]
[403191784,1769261445195,-10000.0,0.000179,2]
[403191785,1769261445204,-25000.0,0.000179,3]
[403191786,1769261445214,-4840.1444,0.000179,2]
[403191787,1769261445225,-250.0,0.000179,2]
[403191788,1769261445235,-250.0,0.000179,2]
[403191789,1769261445246,-250.0,0.000179,2]
[403191790,1769261445257,-15553.74068616,0.000179,2]
[403191791,1769261445267,-250.0,0.000179,2]
[403191792,1769261445276,-250.0,0.000179,2]
[403191793,1769261445285,-250.0,0.000179,2]
[403191794,1769261445294,-250.0,0.000179,2]
[403191795,1769261445303,-250.0,0.000179,2]
[403191796,1769261445312,-250.0,0.000179,2]
[403191797,1769261445321,-250.0,0.000179,2]
[403191798,1769261445330,-250.0,0.000179,2]
[403191799,1769261445339,-274.311997,0.000179,2]
[403191800,1769261445348,-329.06560895,0.000179,2]
[403191801,1769261445357,-9484.70157695,0.000179,2]
[403191802,1769261445367,-190.80620809,0.000179,3]
[403191803,1769261445376,-10031.62268467,0.000179,2]
[403191804,1769261445385,-5583.0,0.000179,2]
[403191805,1769261445394,-3552.7,0.00017902,2]
[403191806,1769261445403,-1000.0,0.00017907,2]
[403191807,1769261445413,-150.0,0.00017911,2]
[403191808,1769261445422,-470.62193096,0.00017918,2]
[403191809,1769261445432,-778.0,0.00017918,2]
[403191810,1769261445441,-159.59843399,0.00017925,2]
[403191811,1769261445450,-1000.0,0.00017928,2]
[403191812,1769261445459,-500.0,0.00017931,2]
[403191813,1769261445468,-160948.945745,0.00017932,2]
[403191814,1769261445478,-1683.0,0.00017943,2]
[403191815,1769261445488,-1000.0,0.00017943,2]
[403191816,1769261445498,-153.7074367,0.00017948,2]
[403191817,1769261445509,-1000.0,0.00017949,2]
[403191818,1769261445519,-200.0,0.00017954,2]
[403191819,1769261445530,-240.03,0.00017959,2]
[403191820,1769261445540,-1000.0,0.0001797,2]
[403191821,1769261445549,-500.0,0.0001797,2]
[403191822,1769261445563,-1000.0,0.0001797,2]
[403191823,1769261445575,-500.0,0.0001797,2]
[403191824,1769261445585,-1000.0,0.0001797,2]
[403191825,1769261445595,-500.0,0.0001797,2]
[403191826,1769261445606,-1000.0,0.0001797,2]
[403191827,1769261445617,-500.0,0.0001797,2]
[403191828,1769261445626,-500.0,0.0001797,2]
[403191829,1769261445636,-1000.0,0.0001797,2]
[403191830,1769261445646,-500.0,0.0001797,2]
[403191831,1769261445656,-1000.0,0.0001797,2]
[403191832,1769261445666,-601.31337833,0.0001797,2]
[403191833,1769261445676,-1425.13914229,0.0001797,2]
[403191835,1769261445686,-15055.0,0.00017973,2]
[403191836,1769261445695,-612.98031238,0.00017973,2]
[403191837,1769261445705,-500.0,0.00017973,2]
[403191838,1769261445714,-500.0,0.00017973,2]
[403191839,1769261445723,-500.0,0.00017973,2]
[403191840,1769261445732,-500.0,0.00017973,2]
[403191841,1769261445742,-500.0,0.00017973,2]
[403191842,1769261445756,-500.0,0.00017973,2]
[403191843,1769261445768,-500.0,0.00017973,2]
[403191844,1769261446075,-500.0,0.00017973,2]
[403191845,1769261446085,-300.0,0.00017973,2]
[403191846,1769261446095,-500.0,0.00017973,2]
[403191847,1769261446104,-150.0,0.00017973,2]
[403191848,1769261446114,-500.0,0.00017973,2]
[403191849,1769261446123,-500.0,0.00017973,2]
[403191850,1769261446133,-462.87386439,0.00017973,2]
[403191851,1769261446142,-558.82608128,0.00017973,2]
[403191852,1769261446151,-336.33747242,0.00017973,2]
[403191853,1769261446160,-500.0,0.00017973,2]
[403191854,1769261446170,-500.0,0.00017973,2]
[403191855,1769261446180,-500.0,0.00017973,2]
[403191856,1769261446189,-500.0,0.00017973,2]
[403191857,1769261446198,-150.0,0.00017973,2]
[403191858,1769261446207,-500.0,0.00017973,2]
[403191859,1769261446217,-500.0,0.00017973,2]
[403191860,1769261446226,-500.0,0.00017973,2]
[403191861,1769261446235,-208.11665623,0.00017973,2]
[403191862,1769261446244,-500.0,0.00017973,2]
[403191863,1769261446258,-500.0,0.00017973,2]
[403191864,1769261446268,-500.0,0.00017973,2]
[403191865,1769261446277,-160.05079201,0.00017973,2]
[403191866,1769261446287,-160.03828545,0.00017973,2]
[403191867,1769261446296,-500.0,0.00017973,2]
[403191868,1769261446305,-500.0,0.00017973,2]
[403191869,1769261446315,-500.0,0.00017973,2]
[403191870,1769261446324,-158.06916035,0.00017973,2]
[403191871,1769261446333,-500.0,0.00017973,2]
[403191872,1769261446343,-160.04899722,0.00017973,2]
[403191874,1769261446352,-335.93123339,0.00017973,2]
[403191875,1769261446361,-500.0,0.00017973,2]
[403191876,1769261446370,-160.30101054,0.00017973,2]
[403191877,1769261446379,-500.0,0.00017973,2]
[403191878,1769261446389,-161.29695591,0.00017973,2]
[403191879,1769261446399,-160.05160425,0.00017973,2]
[403191880,1769261446410,-157.31967869,0.00017973,2]
[403191881,1769261446419,-500.0,0.00017973,2]
[403191882,1769261446430,-500.0,0.00017973,2]
[403191883,1769261446439,-500.0,0.00017973,2]
[403191884,1769261446451,-500.0,0.00017973,2]
[403191885,1769261446460,-500.0,0.00017973,2]
[403191886,1769261446470,-160.04994992,0.00017973,2]
[403191887,1769261446481,-160.95253726,0.00017973,2]
[403191888,1769261446492,-159.93585942,0.00017973,2]
[403191889,1769261446501,-160.03318119,0.00017973,2]
[403191890,1769261446511,-160.05036115,0.00017973,2]
[403191891,1769261446520,-166.43972344,0.00017973,2]
[403191892,1769261446529,-500.0,0.00017973,2]
[403191893,1769261446538,-500.0,0.00017973,2]
[403191894,1769261446547,-500.0,0.00017973,2]
[403191895,1769261446557,-508.83270828,0.00017973,2]
[403191896,1769261446566,-548.15607658,0.00017973,2]
[403191897,1769261446576,-161.24700646,0.00017973,2]
[403191898,1769261446586,-284.08136107,0.00017973,2]
[403191899,1769261446596,-164.56853003,0.00017973,2]
[403191900,1769261446606,-308.89625283,0.00017973,2]
[403191901,1769261446617,-500.0,0.00017973,2]
[403191902,1769261446626,-500.0,0.00017973,2]
[403191903,1769261446635,-169.51216753,0.00017973,2]
[403191904,1769261446644,-500.0,0.00017973,2]
[403191905,1769261446654,-500.0,0.00017973,2]
[403191906,1769261446663,-500.0,0.00017973,2]
[403191907,1769261446672,-557.48260843,0.00017973,2]
[403191908,1769261446681,-165.72236604,0.00017973,2]
[403191909,1769261446690,-500.0,0.00017973,2]
[403191910,1769261446700,-500.0,0.00017973,2]
[403191911,1769261446709,-500.0,0.00017973,2]
[403191912,1769261446719,-500.0,0.00017973,2]
[403191913,1769261446729,-161.20666181,0.00017973,2]
[403191914,1769261446739,-500.0,0.00017973,2]
[403191915,1769261446748,-333.14308792,0.00017973,2]
[403191916,1769261446757,-500.0,0.00017973,2]
[403191917,1769261446766,-500.0,0.00017973,2]
[403191918,1769261446776,-500.0,0.00017973,2]
[403191919,1769261446785,-180.05440168,0.00017973,2]
[403191920,1769261446794,-160.05242782,0.00017973,2]
[403191921,1769261446803,-160.0507877,0.00017973,2]
[403191922,1769261446813,-512.1744801,0.00017973,2]
[403191923,1769261446823,-500.0,0.00017973,2]
[403191924,1769261446832,-500.0,0.00017973,2]
[403191925,1769261446842,-162.47485834,0.00017973,2]
[403191926,1769261446851,-500.0,0.00017973,2]
[403191927,1769261446862,-167.78129088,0.00017973,2]
[403191928,1769261446871,-500.0,0.00017973,2]
[403191929,1769261446881,-500.0,0.00017973,2]
[403191930,1769261446890,-500.0,0.00017973,2]
[403191931,1769261446899,-161.91357387,0.00017973,2]
[403191932,1769261446908,-161.03754612,0.00017973,2]
[403191933,1769261446918,-485.5720463,0.00017973,2]
[403191934,1769261446928,-208.57012707,0.00017973,2]
[403191935,1769261446938,-511.74783648,0.00017973,2]
[403191936,1769261446948,-500.0,0.00017973,2]